[Event "Titled Tuesday Blitz July 6 2021"]
[White "Akhvlediani, Irakli"]
[Black "Przybylski, Wojciech"]
[WhiteFideId "13601938"]
[BlackFideId "1117599"]
[WhiteElo "2226"]
[BlackElo "2317"]
[Result "1-0"]
[Round "04"]
[TimeControl "180+1"]
[Date "2021.07.06"]
[WhiteClock "0:00:11"]
[BlackClock "0:00:12"]

1. Nf3 {[%clk 0:03:00]}  Nf6 {[%clk 0:02:55]} 2. c4 {[%clk 0:03:01]}  e6 {[%clk 0:02:51]} 3. e3 {[%clk 0:03:01]}  b6 {[%clk 0:02:47]} 4. b3 {[%clk 0:03:01]}  Bb7 {[%clk 0:02:47]} 5. Bb2 {[%clk 0:03:01]}  Be7 {[%clk 0:02:47]} 6. Qc2 {[%clk 0:03:01]}  O-O {[%clk 0:02:48]} 7. Ng5 {[%clk 0:03:01]}  g6 {[%clk 0:02:44]} 8. h4 {[%clk 0:02:59]}  Nh5 {[%clk 0:02:12]} 9. Be2 {[%clk 0:02:18]}  f5 {[%clk 0:02:00]} 10. Bxh5 {[%clk 0:01:47]}  gxh5 {[%clk 0:02:00]} 11. Rh3 {[%clk 0:01:33]}  h6 {[%clk 0:01:47]} 12. Nf3 {[%clk 0:00:57]}  Kh7 {[%clk 0:01:46]} 13. Nc3 {[%clk 0:00:43]}  Na6 {[%clk 0:01:44]} 14. a3 {[%clk 0:00:43]}  Nc5 {[%clk 0:01:41]} 15. O-O-O {[%clk 0:00:41]}  Ne4 {[%clk 0:01:38]} 16. Nxe4 {[%clk 0:00:39]}  Bxe4 {[%clk 0:01:34]} 17. d3 {[%clk 0:00:39]}  Bb7 {[%clk 0:01:33]} 18. Qe2 {[%clk 0:00:32]}  Bf6 {[%clk 0:01:30]} 19. Ng5+ {[%clk 0:00:17]}  Kg6 {[%clk 0:01:17]} 20. Nf3 {[%clk 0:00:15]}  Bxb2+ {[%clk 0:00:58]} 21. Qxb2 {[%clk 0:00:16]}  Kh7 {[%clk 0:00:48]} 22. Rg3 {[%clk 0:00:11]}  Rg8 {[%clk 0:00:46]} 23. Rxg8 {[%clk 0:00:08]}  Qxg8 {[%clk 0:00:47]} 24. Ne5 {[%clk 0:00:05]}  Qg7 {[%clk 0:00:46]} 25. d4 {[%clk 0:00:04]}  d6 {[%clk 0:00:40]} 26. Nd3 {[%clk 0:00:04]}  Qxg2 {[%clk 0:00:33]} 27. Nf4 {[%clk 0:00:04]}  Qe4 {[%clk 0:00:33]} 28. Nxh5 {[%clk 0:00:04]}  Qxh4 {[%clk 0:00:31]} 29. Nf4 {[%clk 0:00:04]}  Qf6 {[%clk 0:00:27]} 30. Qe2 {[%clk 0:00:02]}  Rg8 {[%clk 0:00:26]} 31. Qh5 {[%clk 0:00:01]}  Rg7 {[%clk 0:00:23]} 32. Qe2 {[%clk 0:00:01]}  e5 {[%clk 0:00:20]} 33. dxe5 {[%clk 0:00:02]}  dxe5 {[%clk 0:00:20]} 34. Nh5 {[%clk 0:00:03]}  Qe7 {[%clk 0:00:18]} 35. Nxg7 {[%clk 0:00:03]}  Qxa3+ {[%clk 0:00:18]} 36. Qb2 {[%clk 0:00:04]}  Qe7 {[%clk 0:00:07]} 37. Nxf5 {[%clk 0:00:03]}  Qe6 {[%clk 0:00:08]} 38. Ng3 {[%clk 0:00:03]}  Bf3 {[%clk 0:00:07]} 39. Qc2+ {[%clk 0:00:04]}  e4 {[%clk 0:00:07]} 40. Rd4 {[%clk 0:00:04]}  c5 {[%clk 0:00:07]} 41. Rxe4 {[%clk 0:00:04]}  Bxe4 {[%clk 0:00:07]} 42. Nxe4 {[%clk 0:00:05]}  Qxe4 {[%clk 0:00:07]} 43. Qxe4+ {[%clk 0:00:05]}  Kg7 {[%clk 0:00:07]} 44. Qg4+ {[%clk 0:00:05]}  Kf6 {[%clk 0:00:08]} 45. f4 {[%clk 0:00:06]}  h5 {[%clk 0:00:08]} 46. Qxh5 {[%clk 0:00:07]}  Ke6 {[%clk 0:00:08]} 47. e4 {[%clk 0:00:07]}  Kd6 {[%clk 0:00:09]} 48. Qh6+ {[%clk 0:00:08]}  Kc7 {[%clk 0:00:09]} 49. f5 {[%clk 0:00:09]}  Kb7 {[%clk 0:00:10]} 50. f6 {[%clk 0:00:10]}  Ka6 {[%clk 0:00:10]} 51. f7 {[%clk 0:00:11]}  Ka5 {[%clk 0:00:10]} 52. Qd2+ {[%clk 0:00:11]}  Ka6 {[%clk 0:00:10]} 53. f8=Q {[%clk 0:00:12]}  Kb7 {[%clk 0:00:11]} 54. Qfd8 {[%clk 0:00:11]}  Ka6 {[%clk 0:00:12]} 55. Qc8# {[%clk 0:00:11]} 1-0


[Site "https://www.chess.com"]

[Event "Titled Tuesday Blitz July 6 2021"]
[White "Araujo Filho, Luiz Antonio Coel"]
[Black "Gelman, Alexander"]
[WhiteFideId "2130661"]
[BlackFideId "4118316"]
[WhiteElo "2261"]
[BlackElo "2375"]
[Result "0-1"]
[Round "04"]
[TimeControl "180+1"]
[Date "2021.07.06"]
[WhiteClock "0:00:01"]
[BlackClock "0:00:37"]

1. d4 {[%clk 0:03:00]}  Nf6 {[%clk 0:02:59]} 2. Nf3 {[%clk 0:03:01]}  c5 {[%clk 0:02:59]} 3. e3 {[%clk 0:03:01]}  d6 {[%clk 0:03:00]} 4. Be2 {[%clk 0:03:00]}  Nbd7 {[%clk 0:03:00]} 5. O-O {[%clk 0:03:01]}  b6 {[%clk 0:03:00]} 6. b3 {[%clk 0:03:01]}  e6 {[%clk 0:03:00]} 7. Bb2 {[%clk 0:03:02]}  Bb7 {[%clk 0:03:01]} 8. Nbd2 {[%clk 0:03:02]}  Qc7 {[%clk 0:02:59]} 9. c4 {[%clk 0:03:02]}  Rg8 {[%clk 0:02:59]} 10. Qc2 {[%clk 0:02:52]}  g5 {[%clk 0:02:59]} 11. e4 {[%clk 0:02:49]}  g4 {[%clk 0:02:57]} 12. Ne1 {[%clk 0:02:49]}  cxd4 {[%clk 0:02:56]} 13. Bxd4 {[%clk 0:02:48]}  h5 {[%clk 0:02:53]} 14. f4 {[%clk 0:02:23]}  gxf3 {[%clk 0:02:31]} 15. Nexf3 {[%clk 0:02:23]}  Be7 {[%clk 0:02:27]} 16. b4 {[%clk 0:02:10]}  Rc8 {[%clk 0:02:15]} 17. Rac1 {[%clk 0:02:08]}  Ne5 {[%clk 0:02:00]} 18. Nxe5 {[%clk 0:01:55]}  dxe5 {[%clk 0:01:59]} 19. Bc3 {[%clk 0:01:55]}  a5 {[%clk 0:01:46]} 20. a3 {[%clk 0:01:55]}  Rd8 {[%clk 0:01:37]} 21. Bf3 {[%clk 0:00:59]}  axb4 {[%clk 0:01:32]} 22. axb4 {[%clk 0:00:58]}  Ng4 {[%clk 0:01:25]} 23. Rce1 {[%clk 0:00:20]}  Bg5 {[%clk 0:01:22]} 24. Bxg4 {[%clk 0:00:09]}  hxg4 {[%clk 0:01:23]} 25. Re2 {[%clk 0:00:07]}  Rh8 {[%clk 0:00:44]} 26. Qb2 {[%clk 0:00:02]}  Rd4 {[%clk 0:00:42]} 27. Bxd4 {[%clk 0:00:02]}  exd4 {[%clk 0:00:42]} 28. g3 {[%clk 0:00:01]}  e5 {[%clk 0:00:37]} 0-1


[Site "https://www.chess.com"]

[Event "Titled Tuesday Blitz July 6 2021"]
[White "Bakalchuk, Johnatan"]
[Black "Afanasiev, Nikita"]
[WhiteFideId "2810301"]
[BlackFideId "24183555"]
[WhiteElo "2507"]
[BlackElo "2521"]
[Result "0-1"]
[Round "04"]
[TimeControl "180+1"]
[Date "2021.07.06"]
[WhiteClock "0:00:06"]
[BlackClock "0:00:14"]

1. e4 {[%clk 0:03:00]}  d6 {[%clk 0:02:57]} 2. d4 {[%clk 0:03:00]}  g6 {[%clk 0:02:58]} 3. Nc3 {[%clk 0:03:00]}  Bg7 {[%clk 0:02:58]} 4. Be3 {[%clk 0:02:59]}  a6 {[%clk 0:02:58]} 5. h4 {[%clk 0:02:59]}  h5 {[%clk 0:02:57]} 6. Qd2 {[%clk 0:02:59]}  b5 {[%clk 0:02:55]} 7. f3 {[%clk 0:02:59]}  Bb7 {[%clk 0:02:55]} 8. Nh3 {[%clk 0:03:00]}  Nd7 {[%clk 0:02:55]} 9. Ng5 {[%clk 0:03:00]}  Ngf6 {[%clk 0:02:55]} 10. O-O-O {[%clk 0:02:55]}  e6 {[%clk 0:02:56]} 11. Kb1 {[%clk 0:02:55]}  Qe7 {[%clk 0:02:56]} 12. Ne2 {[%clk 0:02:50]}  c5 {[%clk 0:02:43]} 13. dxc5 {[%clk 0:02:23]}  dxc5 {[%clk 0:02:43]} 14. Nf4 {[%clk 0:02:19]}  Ne5 {[%clk 0:02:32]} 15. Qd6 {[%clk 0:02:03]}  Qxd6 {[%clk 0:02:22]} 16. Rxd6 {[%clk 0:02:02]}  Nfd7 {[%clk 0:02:23]} 17. Be2 {[%clk 0:01:55]}  O-O-O {[%clk 0:02:10]} 18. Rhd1 {[%clk 0:01:53]}  Bf8 {[%clk 0:02:10]} 19. R6d2 {[%clk 0:01:50]}  Be7 {[%clk 0:02:10]} 20. Nxf7 {[%clk 0:01:29]}  Nxf7 {[%clk 0:02:09]} 21. Nxe6 {[%clk 0:01:28]}  Bxh4 {[%clk 0:02:03]} 22. Nxd8 {[%clk 0:01:20]}  Rxd8 {[%clk 0:02:02]} 23. a4 {[%clk 0:01:15]}  Bc6 {[%clk 0:02:00]} 24. axb5 {[%clk 0:01:14]}  axb5 {[%clk 0:02:01]} 25. f4 {[%clk 0:01:11]}  Be7 {[%clk 0:01:51]} 26. e5 {[%clk 0:01:09]}  Nf8 {[%clk 0:01:38]} 27. Rxd8+ {[%clk 0:01:07]}  Nxd8 {[%clk 0:01:32]} 28. g4 {[%clk 0:01:06]}  hxg4 {[%clk 0:01:28]} 29. Bxg4+ {[%clk 0:01:07]}  Bd7 {[%clk 0:01:27]} 30. Bf3 {[%clk 0:00:54]}  Bf5 {[%clk 0:01:20]} 31. b3 {[%clk 0:00:50]}  Kc7 {[%clk 0:01:20]} 32. Be2 {[%clk 0:00:49]}  b4 {[%clk 0:01:17]} 33. Rh1 {[%clk 0:00:44]}  Nde6 {[%clk 0:01:02]} 34. Kb2 {[%clk 0:00:44]}  Nd4 {[%clk 0:01:00]} 35. Bxd4 {[%clk 0:00:38]}  cxd4 {[%clk 0:01:01]} 36. Bd3 {[%clk 0:00:33]}  Bxd3 {[%clk 0:01:00]} 37. cxd3 {[%clk 0:00:34]}  Ne6 {[%clk 0:01:01]} 38. Rf1 {[%clk 0:00:29]}  Kc6 {[%clk 0:01:01]} 39. f5 {[%clk 0:00:25]}  gxf5 {[%clk 0:01:00]} 40. Rxf5 {[%clk 0:00:26]}  Kd5 {[%clk 0:01:00]} 41. Kc2 {[%clk 0:00:26]}  Bd8 {[%clk 0:00:59]} 42. Rf7 {[%clk 0:00:24]}  Bc7 {[%clk 0:00:53]} 43. Rd7+ {[%clk 0:00:22]}  Kxe5 {[%clk 0:00:53]} 44. Kd2 {[%clk 0:00:22]}  Bd6 {[%clk 0:00:53]} 45. Kc2 {[%clk 0:00:21]}  Nf4 {[%clk 0:00:50]} 46. Rd8 {[%clk 0:00:20]}  Ne6 {[%clk 0:00:50]} 47. Re8 {[%clk 0:00:21]}  Kd5 {[%clk 0:00:50]} 48. Rh8 {[%clk 0:00:21]}  Bg3 {[%clk 0:00:49]} 49. Rh5+ {[%clk 0:00:21]}  Kc6 {[%clk 0:00:46]} 50. Rf5 {[%clk 0:00:22]}  Kd6 {[%clk 0:00:45]} 51. Rb5 {[%clk 0:00:21]}  Be1 {[%clk 0:00:44]} 52. Rb6+ {[%clk 0:00:21]}  Kd5 {[%clk 0:00:44]} 53. Ra6 {[%clk 0:00:20]}  Bc3 {[%clk 0:00:43]} 54. Ra5+ {[%clk 0:00:20]}  Kd6 {[%clk 0:00:43]} 55. Ra6+ {[%clk 0:00:20]}  Ke7 {[%clk 0:00:42]} 56. Ra7+ {[%clk 0:00:20]}  Kf6 {[%clk 0:00:43]} 57. Ra6 {[%clk 0:00:20]}  Kf5 {[%clk 0:00:43]} 58. Ra5+ {[%clk 0:00:20]}  Kg4 {[%clk 0:00:43]} 59. Re5 {[%clk 0:00:20]}  Nf4 {[%clk 0:00:42]} 60. Re8 {[%clk 0:00:19]}  Nd5 {[%clk 0:00:42]} 61. Rf8 {[%clk 0:00:17]}  Nf4 {[%clk 0:00:39]} 62. Rf7 {[%clk 0:00:17]}  Ng2 {[%clk 0:00:35]} 63. Rf8 {[%clk 0:00:17]}  Ne1+ {[%clk 0:00:35]} 64. Kd1 {[%clk 0:00:14]}  Nxd3 {[%clk 0:00:36]} 65. Kc2 {[%clk 0:00:11]}  Nc5 {[%clk 0:00:35]} 66. Rc8 {[%clk 0:00:11]}  d3+ {[%clk 0:00:35]} 67. Kd1 {[%clk 0:00:11]}  Nxb3 {[%clk 0:00:35]} 68. Rd8 {[%clk 0:00:10]}  Nd4 {[%clk 0:00:35]} 69. Re8 {[%clk 0:00:06]}  Kf4 {[%clk 0:00:31]} 70. Rf8+ {[%clk 0:00:07]}  Ke4 {[%clk 0:00:31]} 71. Re8+ {[%clk 0:00:07]}  Kd5 {[%clk 0:00:31]} 72. Re3 {[%clk 0:00:07]}  Kc4 {[%clk 0:00:31]} 73. Re8 {[%clk 0:00:06]}  Nb3 {[%clk 0:00:31]} 74. Rc8+ {[%clk 0:00:05]}  Nc5 {[%clk 0:00:31]} 75. Rh8 {[%clk 0:00:05]}  b3 {[%clk 0:00:31]} 76. Rh4+ {[%clk 0:00:06]}  Bd4 {[%clk 0:00:31]} 77. Kc1 {[%clk 0:00:06]}  Kc3 {[%clk 0:00:31]} 78. Kb1 {[%clk 0:00:06]}  d2 {[%clk 0:00:29]} 79. Rh3+ {[%clk 0:00:06]}  Kc4 {[%clk 0:00:24]} 80. Rd3 {[%clk 0:00:06]}  Ne4 {[%clk 0:00:14]} 0-1


[Site "https://www.chess.com"]

[Event "Titled Tuesday Blitz July 6 2021"]
[White "Bilych, Olexiy"]
[Black "Reprintsev, Alexander"]
[WhiteFideId "14156504"]
[BlackFideId "14100541"]
[WhiteElo "2246"]
[BlackElo "2126"]
[Result "1-0"]
[Round "04"]
[TimeControl "180+1"]
[Date "2021.07.06"]
[WhiteClock "0:00:29"]
[BlackClock "0:00:02"]

1. Nf3 {[%clk 0:03:00]}  Nc6 {[%clk 0:02:42]} 2. c4 {[%clk 0:02:59]}  e5 {[%clk 0:02:41]} 3. Nc3 {[%clk 0:02:59]}  Bb4 {[%clk 0:02:41]} 4. Nd5 {[%clk 0:02:56]}  e4 {[%clk 0:02:20]} 5. Nxb4 {[%clk 0:02:28]}  Nxb4 {[%clk 0:02:18]} 6. Nd4 {[%clk 0:02:29]}  Qe7 {[%clk 0:01:47]} 7. a3 {[%clk 0:02:20]}  Nc6 {[%clk 0:01:44]} 8. Nc2 {[%clk 0:02:18]}  Nf6 {[%clk 0:01:34]} 9. Ne3 {[%clk 0:02:11]}  d6 {[%clk 0:01:24]} 10. g3 {[%clk 0:02:03]}  h5 {[%clk 0:01:24]} 11. h4 {[%clk 0:01:52]}  Ng4 {[%clk 0:01:07]} 12. Bg2 {[%clk 0:01:51]}  Nxe3 {[%clk 0:01:06]} 13. dxe3 {[%clk 0:01:52]}  Bf5 {[%clk 0:01:00]} 14. Bd2 {[%clk 0:01:48]}  f6 {[%clk 0:01:00]} 15. Bc3 {[%clk 0:01:47]}  Qe6 {[%clk 0:00:56]} 16. b3 {[%clk 0:01:45]}  a5 {[%clk 0:00:51]} 17. Qd5 {[%clk 0:01:28]}  Qxd5 {[%clk 0:00:49]} 18. cxd5 {[%clk 0:01:29]}  Ne7 {[%clk 0:00:49]} 19. O-O-O {[%clk 0:01:29]}  Kf7 {[%clk 0:00:34]} 20. Rd4 {[%clk 0:01:21]}  Rhc8 {[%clk 0:00:24]} 21. Rhd1 {[%clk 0:01:20]}  c5 {[%clk 0:00:23]} 22. dxc6 {[%clk 0:01:19]}  Rxc6 {[%clk 0:00:22]} 23. Kb2 {[%clk 0:01:14]}  d5 {[%clk 0:00:19]} 24. f3 {[%clk 0:01:11]}  Rac8 {[%clk 0:00:17]} 25. Rc1 {[%clk 0:01:12]}  b6 {[%clk 0:00:16]} 26. Bd2 {[%clk 0:01:02]}  Rxc1 {[%clk 0:00:15]} 27. Bxc1 {[%clk 0:01:02]}  Rc5 {[%clk 0:00:13]} 28. fxe4 {[%clk 0:00:48]}  Bxe4 {[%clk 0:00:10]} 29. Bxe4 {[%clk 0:00:48]}  dxe4 {[%clk 0:00:11]} 30. Rxe4 {[%clk 0:00:48]}  Nf5 {[%clk 0:00:11]} 31. g4 {[%clk 0:00:48]}  hxg4 {[%clk 0:00:11]} 32. Rxg4 {[%clk 0:00:48]}  g6 {[%clk 0:00:10]} 33. e4 {[%clk 0:00:45]}  Nd4 {[%clk 0:00:09]} 34. Be3 {[%clk 0:00:45]}  Rc2+ {[%clk 0:00:08]} 35. Kb1 {[%clk 0:00:46]}  Rc3 {[%clk 0:00:04]} 36. Bxd4 {[%clk 0:00:46]}  Rxb3+ {[%clk 0:00:05]} 37. Bb2 {[%clk 0:00:45]}  Re3 {[%clk 0:00:04]} 38. Rf4 {[%clk 0:00:46]}  Rxe2 {[%clk 0:00:05]} 39. Rxf6+ {[%clk 0:00:46]}  Ke7 {[%clk 0:00:05]} 40. Rxb6 {[%clk 0:00:44]}  Rxe4 {[%clk 0:00:05]} 41. Rxg6 {[%clk 0:00:44]}  Rxh4 {[%clk 0:00:05]} 42. Ra6 {[%clk 0:00:34]}  Rh5 {[%clk 0:00:02]} 43. a4 {[%clk 0:00:33]}  Kd7 {[%clk 0:00:02]} 44. Bc3 {[%clk 0:00:34]}  Kc7 {[%clk 0:00:02]} 45. Bxa5+ {[%clk 0:00:32]}  Kb7 {[%clk 0:00:02]} 46. Rb6+ {[%clk 0:00:33]}  Ka7 {[%clk 0:00:03]} 47. Rb5 {[%clk 0:00:33]}  Rh4 {[%clk 0:00:03]} 48. Bb4 {[%clk 0:00:34]}  Ka6 {[%clk 0:00:03]} 49. Kb2 {[%clk 0:00:33]}  Ka7 {[%clk 0:00:03]} 50. Kb3 {[%clk 0:00:34]}  Ka6 {[%clk 0:00:04]} 51. Bc3 {[%clk 0:00:34]}  Ka7 {[%clk 0:00:03]} 52. Ra5+ {[%clk 0:00:34]}  Kb6 {[%clk 0:00:03]} 53. Rf5 {[%clk 0:00:34]}  Kb7 {[%clk 0:00:02]} 54. a5 {[%clk 0:00:33]}  Rg4 {[%clk 0:00:02]} 55. Bb4 {[%clk 0:00:31]}  Rg6 {[%clk 0:00:01]} 56. Ka4 {[%clk 0:00:31]}  Ka6 {[%clk 0:00:02]} 57. Rd5 {[%clk 0:00:29]} 1-0


[Site "https://www.chess.com"]

[Event "Titled Tuesday Blitz July 6 2021"]
[White "Bordi, Kevin"]
[Black "Levitskiy, Andrey"]
[WhiteFideId "621862"]
[BlackFideId "14132885"]
[WhiteElo "2743"]
[BlackElo "2323"]
[Result "0-1"]
[Round "04"]
[TimeControl "180+1"]
[Date "2021.07.06"]
[WhiteClock "0:00:11"]
[BlackClock "0:00:16"]

1. d4 {[%clk 0:03:00]}  Nf6 {[%clk 0:02:59]} 2. Bg5 {[%clk 0:03:00]}  c5 {[%clk 0:02:58]} 3. Bxf6 {[%clk 0:03:00]}  exf6 {[%clk 0:02:59]} 4. dxc5 {[%clk 0:02:59]}  Bxc5 {[%clk 0:02:58]} 5. e3 {[%clk 0:03:00]}  d5 {[%clk 0:02:57]} 6. c3 {[%clk 0:02:59]}  Nc6 {[%clk 0:02:56]} 7. g3 {[%clk 0:02:57]}  Be6 {[%clk 0:02:54]} 8. Bg2 {[%clk 0:02:57]}  h5 {[%clk 0:02:53]} 9. h4 {[%clk 0:02:56]}  Ne5 {[%clk 0:02:39]} 10. Ne2 {[%clk 0:02:51]}  Bg4 {[%clk 0:02:38]} 11. O-O {[%clk 0:02:29]}  Nf3+ {[%clk 0:02:15]} 12. Kh1 {[%clk 0:02:28]}  g5 {[%clk 0:02:14]} 13. Nd2 {[%clk 0:02:22]}  Nxd2 {[%clk 0:02:04]} 14. Qxd2 {[%clk 0:02:23]}  gxh4 {[%clk 0:02:05]} 15. gxh4 {[%clk 0:02:18]}  f5 {[%clk 0:02:00]} 16. Nf4 {[%clk 0:02:08]}  Qxh4+ {[%clk 0:01:57]} 17. Kg1 {[%clk 0:02:08]}  O-O-O {[%clk 0:01:49]} 18. b4 {[%clk 0:02:06]}  Bd6 {[%clk 0:01:44]} 19. Qxd5 {[%clk 0:02:02]}  Rd7 {[%clk 0:01:31]} 20. Rfd1 {[%clk 0:01:55]}  Bxd1 {[%clk 0:01:22]} 21. Rxd1 {[%clk 0:01:53]}  Rhd8 {[%clk 0:01:19]} 22. Qxf5 {[%clk 0:01:43]}  Bxf4 {[%clk 0:01:02]} 23. exf4 {[%clk 0:01:42]}  Qg4 {[%clk 0:00:54]} 24. Qc5+ {[%clk 0:01:17]}  Kb8 {[%clk 0:00:52]} 25. Rxd7 {[%clk 0:01:15]}  Qxd7 {[%clk 0:00:38]} 26. Qxh5 {[%clk 0:01:12]}  Qd1+ {[%clk 0:00:38]} 27. Qxd1 {[%clk 0:01:11]}  Rxd1+ {[%clk 0:00:39]} 28. Kh2 {[%clk 0:01:12]}  Rd2 {[%clk 0:00:39]} 29. Kg3 {[%clk 0:00:48]}  Rxa2 {[%clk 0:00:38]} 30. Bd5 {[%clk 0:00:48]}  Rc2 {[%clk 0:00:37]} 31. c4 {[%clk 0:00:42]}  f6 {[%clk 0:00:34]} 32. f3 {[%clk 0:00:41]}  Rb2 {[%clk 0:00:23]} 33. b5 {[%clk 0:00:34]}  a5 {[%clk 0:00:23]} 34. bxa6 {[%clk 0:00:33]}  bxa6 {[%clk 0:00:24]} 35. Kg4 {[%clk 0:00:31]}  Kc7 {[%clk 0:00:23]} 36. Kf5 {[%clk 0:00:30]}  Kd6 {[%clk 0:00:23]} 37. Kxf6 {[%clk 0:00:30]}  a5 {[%clk 0:00:23]} 38. f5 {[%clk 0:00:20]}  a4 {[%clk 0:00:23]} 39. Kg7 {[%clk 0:00:14]}  a3 {[%clk 0:00:22]} 40. Bf7 {[%clk 0:00:13]}  Kc5 {[%clk 0:00:22]} 41. f6 {[%clk 0:00:10]}  a2 {[%clk 0:00:20]} 42. Bg6 {[%clk 0:00:10]}  a1=Q {[%clk 0:00:18]} 43. f7 {[%clk 0:00:11]}  Rb8+ {[%clk 0:00:17]} 44. Kh7 {[%clk 0:00:11]}  Rh8# {[%clk 0:00:16]} 0-1


[Site "https://www.chess.com"]

[Event "Titled Tuesday Blitz July 6 2021"]
[White "Boyer, Mahel"]
[Black "Zong, Davis"]
[WhiteFideId "45102422"]
[BlackFideId "30903955"]
[WhiteElo "2328"]
[BlackElo "2431"]
[Result "0-1"]
[Round "04"]
[TimeControl "180+1"]
[Date "2021.07.06"]
[WhiteClock "0:00:01"]
[BlackClock "0:01:27"]

1. g3 {[%clk 0:03:00]}  d5 {[%clk 0:02:59]} 2. Bg2 {[%clk 0:03:01]}  c6 {[%clk 0:02:58]} 3. b3 {[%clk 0:03:00]}  e5 {[%clk 0:02:55]} 4. Bb2 {[%clk 0:03:01]}  Bd6 {[%clk 0:02:53]} 5. c4 {[%clk 0:02:57]}  Nf6 {[%clk 0:02:51]} 6. cxd5 {[%clk 0:02:51]}  cxd5 {[%clk 0:02:51]} 7. Nc3 {[%clk 0:02:51]}  d4 {[%clk 0:02:45]} 8. Ne4 {[%clk 0:02:48]}  Nxe4 {[%clk 0:02:45]} 9. Bxe4 {[%clk 0:02:49]}  O-O {[%clk 0:02:42]} 10. Rc1 {[%clk 0:02:30]}  Nd7 {[%clk 0:02:33]} 11. Nf3 {[%clk 0:02:00]}  Nf6 {[%clk 0:02:19]} 12. Bb1 {[%clk 0:01:59]}  Bh3 {[%clk 0:02:15]} 13. Ng5 {[%clk 0:01:53]}  Qd7 {[%clk 0:02:14]} 14. Ne4 {[%clk 0:01:02]}  Nxe4 {[%clk 0:02:05]} 15. Bxe4 {[%clk 0:01:03]}  f5 {[%clk 0:02:05]} 16. Bd5+ {[%clk 0:00:47]}  Kh8 {[%clk 0:02:05]} 17. b4 {[%clk 0:00:18]}  Bxb4 {[%clk 0:02:03]} 18. Qb3 {[%clk 0:00:18]}  Rfd8 {[%clk 0:01:39]} 19. Be6 {[%clk 0:00:05]}  Qe7 {[%clk 0:01:39]} 20. Bc4 {[%clk 0:00:01]}  Rac8 {[%clk 0:01:36]} 21. Rg1 {[%clk 0:00:01]}  a6 {[%clk 0:01:33]} 22. Bd3 {[%clk 0:00:02]}  e4 {[%clk 0:01:29]} 23. Bb1 {[%clk 0:00:01]}  e3 {[%clk 0:01:27]} 24. fxe3 {[%clk 0:00:01]}  dxe3 {[%clk 0:01:27]} 25. Bc3 {[%clk 0:00:01]}  exd2+ {[%clk 0:01:27]} 0-1


[Site "https://www.chess.com"]

[Event "Titled Tuesday Blitz July 6 2021"]
[White "Coto Mederos, Michel"]
[Black "Leiva, Gianmarco"]
[WhiteFideId "3508528"]
[BlackFideId "3804399"]
[WhiteElo "2427"]
[BlackElo "2365"]
[Result "0-1"]
[Round "04"]
[TimeControl "180+1"]
[Date "2021.07.06"]
[WhiteClock "0:00:05"]
[BlackClock "0:00:46"]

1. d4 {[%clk 0:03:00]}  Nf6 {[%clk 0:02:59]} 2. c4 {[%clk 0:03:00]}  e6 {[%clk 0:02:59]} 3. Nc3 {[%clk 0:02:59]}  Bb4 {[%clk 0:02:57]} 4. e3 {[%clk 0:02:57]}  O-O {[%clk 0:02:57]} 5. Bd3 {[%clk 0:02:56]}  d5 {[%clk 0:02:56]} 6. Ne2 {[%clk 0:02:55]}  dxc4 {[%clk 0:02:45]} 7. Bxc4 {[%clk 0:02:54]}  c5 {[%clk 0:02:46]} 8. a3 {[%clk 0:02:51]}  Bxc3+ {[%clk 0:02:46]} 9. bxc3 {[%clk 0:02:52]}  Qc7 {[%clk 0:02:45]} 10. Bd3 {[%clk 0:02:37]}  Nc6 {[%clk 0:02:45]} 11. a4 {[%clk 0:02:35]}  b6 {[%clk 0:02:02]} 12. O-O {[%clk 0:01:22]}  e5 {[%clk 0:01:55]} 13. d5 {[%clk 0:01:13]}  Nxd5 {[%clk 0:01:52]} 14. Bxh7+ {[%clk 0:01:12]}  Kxh7 {[%clk 0:01:52]} 15. Qxd5 {[%clk 0:01:13]}  Kg8 {[%clk 0:01:39]} 16. e4 {[%clk 0:01:02]}  Ba6 {[%clk 0:01:36]} 17. Qa2 {[%clk 0:00:56]}  Na5 {[%clk 0:01:30]} 18. Bg5 {[%clk 0:00:41]}  Bc4 {[%clk 0:01:25]} 19. Qb2 {[%clk 0:00:39]}  f6 {[%clk 0:01:25]} 20. Be3 {[%clk 0:00:37]}  Rfd8 {[%clk 0:01:22]} 21. Rfd1 {[%clk 0:00:36]}  Qf7 {[%clk 0:01:22]} 22. f3 {[%clk 0:00:36]}  Rd7 {[%clk 0:01:12]} 23. Ng3 {[%clk 0:00:31]}  Rad8 {[%clk 0:01:10]} 24. Rxd7 {[%clk 0:00:31]}  Qxd7 {[%clk 0:01:11]} 25. h4 {[%clk 0:00:30]}  Kf7 {[%clk 0:01:06]} 26. h5 {[%clk 0:00:28]}  Qd3 {[%clk 0:00:57]} 27. Re1 {[%clk 0:00:20]}  Bb3 {[%clk 0:00:53]} 28. Nf5 {[%clk 0:00:17]}  Qc2 {[%clk 0:00:53]} 29. Qxc2 {[%clk 0:00:17]}  Bxc2 {[%clk 0:00:54]} 30. Ra1 {[%clk 0:00:16]}  Rd1+ {[%clk 0:00:53]} 31. Rxd1 {[%clk 0:00:15]}  Bxd1 {[%clk 0:00:54]} 32. g4 {[%clk 0:00:15]}  Bxf3 {[%clk 0:00:52]} 33. h6 {[%clk 0:00:12]}  gxh6 {[%clk 0:00:53]} 34. Nxh6+ {[%clk 0:00:13]}  Ke6 {[%clk 0:00:53]} 35. g5 {[%clk 0:00:13]}  fxg5 {[%clk 0:00:53]} 36. Bxg5 {[%clk 0:00:14]}  Bxe4 {[%clk 0:00:53]} 37. Ng4 {[%clk 0:00:14]}  Bf3 {[%clk 0:00:48]} 38. Ne3 {[%clk 0:00:13]}  Bc6 {[%clk 0:00:48]} 39. Kf2 {[%clk 0:00:12]}  Bxa4 {[%clk 0:00:48]} 40. Bd8 {[%clk 0:00:12]}  Nc6 {[%clk 0:00:47]} 41. Bh4 {[%clk 0:00:12]}  Bb3 {[%clk 0:00:47]} 42. Ke2 {[%clk 0:00:12]}  a5 {[%clk 0:00:47]} 43. Kd2 {[%clk 0:00:13]}  a4 {[%clk 0:00:47]} 44. Kc1 {[%clk 0:00:08]}  Na5 {[%clk 0:00:47]} 45. Kb1 {[%clk 0:00:09]}  Nc4 {[%clk 0:00:47]} 46. Nxc4 {[%clk 0:00:09]}  Bxc4 {[%clk 0:00:47]} 47. Kb2 {[%clk 0:00:05]}  b5 {[%clk 0:00:47]} 48. Bg3 {[%clk 0:00:05]}  b4 {[%clk 0:00:44]} 49. cxb4 {[%clk 0:00:06]}  cxb4 {[%clk 0:00:45]} 50. Be1 {[%clk 0:00:07]}  a3+ {[%clk 0:00:45]} 51. Kc1 {[%clk 0:00:06]}  b3 {[%clk 0:00:46]} 52. Bc3 {[%clk 0:00:06]}  Kd5 {[%clk 0:00:45]} 53. Kb1 {[%clk 0:00:06]}  Bd3+ {[%clk 0:00:45]} 54. Kc1 {[%clk 0:00:04]}  e4 {[%clk 0:00:46]} 55. Kd2 {[%clk 0:00:04]}  b2 {[%clk 0:00:46]} 56. Bxb2 {[%clk 0:00:05]}  axb2 {[%clk 0:00:46]} 0-1


[Site "https://www.chess.com"]